bitfinex-derivatives/quotes_BTCF0:USTF0_20250402
["timestamp","ask_amount","ask_price","bid_price","bid_amount"]
[1743615981407,0.05876631,86494.0,86493.0,0.1265726]
[1743615981610,0.00096001,86494.0,86493.0,0.1265726]
[1743615982208,0.1156091,86497.0,86496.0,0.1156086]
[1743615982409,0.1166091,86497.0,86496.0,0.1166086]
[1743615982708,0.1166091,86497.0,86496.0,0.1266086]
[1743615984700,0.1166086,86497.0,86496.0,0.1266086]
[1743615985108,0.001,86497.0,86496.0,0.1266086]
[1743615986598,0.001,86497.0,86496.0,0.5712086]
[1743615986799,0.28597707,86508.0,86502.0,0.1156019]
[1743615986999,0.13730099,86503.0,86502.0,0.1166419]
[1743615987200,0.07255999,86503.0,86502.0,0.2094419]
[1743615987406,0.17038287,86508.0,86507.0,0.1155952]
[1743615987605,0.17166287,86508.0,86507.0,0.4977552]
[1743615989003,0.00128,86508.0,86507.0,0.4977552]
[1743615991308,1.01656,86544.0,86521.0,0.1155765]
[1743615991512,0.37157733,86527.0,86521.0,0.1172165]
[1743615991705,0.37157733,86527.0,86521.0,0.2169165]
[1743615992314,0.0987,86527.0,86526.0,0.1155698]
[1743615992512,0.0987,86527.0,86526.0,0.1172498]
[1743615993219,0.1956,86527.0,86526.0,0.1172498]
[1743615995012,0.00017336,86530.0,86527.0,0.1155685]
[1743615995314,0.00017336,86530.0,86527.0,0.2109685]
[1743615996414,0.00017336,86530.0,86527.0,0.21964308]
[1743615996622,0.00017336,86530.0,86527.0,0.31474308]
[1743615997811,0.00017336,86530.0,86529.0,0.1155658]
[1743615998118,0.00017336,86530.0,86529.0,0.1272858]
[1743615998304,0.00017336,86530.0,86529.0,0.2223858]
[1743616001111,0.00017336,86530.0,86529.0,0.3189858]
[1743616001612,0.0936,86538.0,86537.0,0.1155551]
[1743616001815,0.0936,86538.0,86537.0,0.1171951]
[1743616002016,0.0928,86543.0,86542.0,0.1155485]
[1743616002213,0.0928,86543.0,86542.0,0.1171885]
[1743616002616,0.0928,86543.0,86542.0,0.2092885]
[1743616003312,0.10258763,86544.0,86543.0,0.1155471]
[1743616003519,0.10258763,86544.0,86543.0,0.2093671]
[1743616003818,0.10258763,86544.0,86543.0,0.3025671]
[1743616004418,0.0004,86544.0,86543.0,0.3025671]
[1743616004908,0.0004,86544.0,86543.0,0.3125671]
[1743616005212,0.10218763,86547.0,86546.0,0.1155431]
[1743616005419,0.17062069,86558.0,86557.0,0.1155284]
[1743616005604,0.17062069,86558.0,86557.0,0.1271684]
[1743616006209,0.0577432,86589.0,86575.0,0.1155044]
[1743616006411,0.0939,86576.0,86575.0,0.1171444]
[1743616007209,0.0939,86576.0,86575.0,0.12589617]
[1743616007610,0.1852,86576.0,86575.0,0.22059617]
[1743616007810,0.3007031,86576.0,86575.0,0.22059617]
[1743616008329,0.17327,86570.0,86569.0,0.1155118]
[1743616008513,0.17327,86570.0,86569.0,0.1166718]
[1743616008819,0.3410562,86570.0,86569.0,0.1166718]
[1743616009026,0.187,86570.0,86569.0,0.1166718]
[1743616009210,0.3025111,86570.0,86569.0,0.1166718]
[1743616009405,0.09,86570.0,86569.0,0.1166718]
[1743616009609,0.2129031,86576.0,86575.0,0.1155044]
[1743616009819,0.2129031,86576.0,86575.0,0.1166644]
[1743616010018,0.21414311,86576.0,86575.0,0.1166644]
[1743616010317,0.00164001,86576.0,86575.0,0.12518821]
[1743616010621,0.0004,86576.0,86575.0,0.21998821]
[1743616011122,0.00156,86576.0,86575.0,0.31068821]
[1743616011521,0.1159031,86576.0,86575.0,0.21588821]
[1743616011716,0.11650311,86576.0,86575.0,0.12518821]
[1743616012322,0.11650311,86576.0,86575.0,0.00116]
[1743616012620,0.1155138,86568.0,86567.0,0.11568836]
[1743616012822,0.1166738,86568.0,86567.0,0.11692836]
[1743616013420,0.2967738,86568.0,86567.0,0.11692836]
[1743616013718,0.2967738,86568.0,86567.0,0.00141326]
[1743616013919,0.2967738,86568.0,86546.0,0.0577701]
[1743616013920,0.30978035,86568.0,86546.0,0.0577701]
[1743616014218,0.1155398,86549.0,86548.0,0.1155405]
[1743616014425,0.1164198,86549.0,86548.0,0.2098205]
[1743616014618,0.1164198,86549.0,86548.0,0.21831657]
[1743616014924,0.1164191,86549.0,86548.0,0.21831657]
[1743616015223,0.3090191,86549.0,86548.0,0.21831657]
[1743616015924,0.19348,86549.0,86548.0,0.21831657]
[1743616016220,0.3090191,86549.0,86548.0,0.21831657]
[1743616018015,0.3090191,86549.0,86540.0,0.00017326]
[1743616018016,0.1155498,86541.0,86540.0,0.00017326]
[1743616018219,0.1161898,86541.0,86540.0,0.11632436]
[1743616018622,0.00064,86541.0,86540.0,0.11632436]
[1743616018819,0.2388704,86548.0,86547.0,0.1155418]
[1743616019019,0.3550935,86548.0,86547.0,0.1161818]
[1743616019532,0.2973205,86548.0,86547.0,0.1161818]
[1743616020631,0.2973205,86548.0,86547.0,0.00064]
[1743616020819,0.1155445,86546.0,86545.0,0.115544]
[1743616021019,0.1155445,86545.0,86544.0,0.1155445]
[1743616021215,0.1155498,86541.0,86539.0,0.1155513]
[1743616021427,0.1161898,86541.0,86540.0,0.11632436]
[1743616024427,0.00064,86541.0,86540.0,0.13632436]
[1743616024629,0.00064,86541.0,86540.0,0.11632436]
[1743616024930,0.3608,86563.0,86556.0,0.1155298]
[1743616025139,0.00089326,86557.0,86556.0,0.1162498]
[1743616025625,0.00089326,86557.0,86556.0,0.00072]
[1743616025626,0.24540833,86557.0,86556.0,0.00072]
[1743616025930,0.2310868,86550.0,86549.0,0.0577674]
[1743616026120,0.5926068,86550.0,86549.0,0.0584874]
[1743616026321,0.72668579,86550.0,86549.0,0.0584874]
[1743616026724,0.2318068,86550.0,86549.0,0.0584874]
[1743616027523,0.4100068,86550.0,86549.0,0.0584874]
[1743616029631,0.4100068,86550.0,86549.0,0.1545874]
[1743616030432,0.4100068,86550.0,86549.0,0.0584874]
[1743616031224,0.4100068,86550.0,86549.0,0.1162591]
[1743616031535,0.4100068,86550.0,86549.0,0.1155391]
[1743616031835,0.3208068,86550.0,86549.0,0.1162591]
[1743616032225,0.3208068,86550.0,86549.0,0.2102591]
[1743616032426,0.3208068,86550.0,86549.0,0.1162591]
[1743616032727,0.1733101,86549.0,86548.0,0.1155404]
[1743616033034,0.1548896,86549.0,86548.0,0.1162604]
[1743616033233,0.2449896,86549.0,86548.0,0.1162604]
[1743616034028,0.00072,86549.0,86548.0,0.3912604]
[1743616034235,0.00017326,86557.0,86556.0,0.1155298]
[1743616034431,0.00017326,86557.0,86556.0,0.1163298]
[1743616034643,0.00097326,86557.0,86556.0,0.2114298]
[1743616035134,0.09107326,86557.0,86556.0,0.2114298]
[1743616035336,0.26436976,86557.0,86556.0,0.2114298]
[1743616036536,0.26436976,86557.0,86556.0,0.3008298]
[1743616037438,0.00097326,86557.0,86556.0,0.3008298]
[1743616037839,0.00017326,86557.0,86556.0,0.3008298]
[1743616040537,0.00017326,86557.0,86556.0,0.3108298]
[1743616042440,0.00017326,86557.0,86556.0,0.3943898]
[1743616043938,0.1155102,86571.0,86570.0,0.1155111]
[1743616044138,0.3019056,86575.0,86574.0,0.1155058]
[1743616044331,0.3027056,86575.0,86574.0,0.1163058]
[1743616044535,0.3019056,86575.0,86574.0,0.2077058]
[1743616044735,0.2134056,86575.0,86574.0,0.2077058]
[1743616044933,0.0008,86575.0,86574.0,0.3024058]
[1743616045136,0.0004,86576.0,86575.0,0.1155044]
[1743616045350,0.0012,86576.0,86575.0,0.1162244]
[1743616045547,0.17183484,86576.0,86575.0,0.3005244]
[1743616045737,0.28733794,86576.0,86575.0,0.3005244]
[1743616046139,0.17183484,86576.0,86575.0,0.3005244]
[1743616046839,0.28733794,86576.0,86575.0,0.3005244]
[1743616047041,0.17183484,86576.0,86575.0,0.3005244]
[1743616050152,0.20364735,86581.0,86580.0,0.1154978]
[1743616050539,0.20364735,86581.0,86580.0,0.3100978]
[1743616050742,0.13655016,86586.0,86582.0,0.1154951]
[1743616051442,0.13655016,86586.0,86582.0,0.3037951]
[1743616051750,0.13655016,86586.0,86582.0,0.31265425]
[1743616052751,0.0898,86585.0,86582.0,0.39613425]
[1743616053446,0.13655016,86586.0,86582.0,0.39613425]
[1743616054246,0.0962,86591.0,86582.0,0.39613425]
[1743616054751,0.2116831,86591.0,86582.0,0.39613425]
[1743616054948,0.1906,86591.0,86582.0,0.39613425]
[1743616055150,0.0004,86592.0,86582.0,0.40613425]
[1743616055351,0.1158823,86592.0,86582.0,0.40613425]
[1743616055552,0.0004,86592.0,86582.0,0.40613425]
[1743616055857,0.0004,86592.0,86591.0,0.1154831]
[1743616056050,0.20364735,86618.0,86599.0,0.1154724]
[1743616056250,0.00096001,86605.0,86604.0,0.5339982]
[1743616056548,0.1521243,86617.0,86607.0,0.1154617]
[1743616056549,0.3060486,86617.0,86607.0,0.1154617]
[1743616056749,0.1154501,86616.0,86607.0,0.1164217]
[1743616056955,0.1154515,86615.0,86607.0,0.1164217]
[1743616057457,0.1154528,86614.0,86607.0,0.1999017]
[1743616057656,0.1158604,86608.0,86607.0,0.1999017]
[1743616057842,0.11682041,86608.0,86607.0,0.1999017]
[1743616058449,0.29992041,86608.0,86607.0,0.1999017]
[1743616059861,0.29992041,86608.0,86607.0,0.08444]
[1743616060046,0.29992041,86608.0,86607.0,0.1164217]
[1743616060850,0.66072041,86608.0,86607.0,0.00096]
[1743616061049,0.1154631,86607.0,86606.0,0.1154628]
[1743616061251,0.11642311,86607.0,86606.0,0.1164228]
[1743616061555,0.66362311,86607.0,86606.0,0.1164228]
[1743616061757,0.66362311,86607.0,86606.0,0.00096]
[1743616061946,0.1154657,86604.0,86603.0,0.0577334]
[1743616062145,0.11606571,86604.0,86603.0,0.0577334]
[1743616063559,0.11606571,86604.0,86603.0,0.0586934]
[1743616064254,0.30156571,86604.0,86603.0,0.0586934]
[1743616065061,0.30156571,86604.0,86603.0,0.00096]
[1743616066354,0.30156571,86604.0,86603.0,0.1164271]
[1743616066953,0.30156571,86604.0,86603.0,0.00096]
[1743616067157,0.30156571,86604.0,86599.0,0.00017326]
[1743616067158,0.173206,86602.0,86601.0,0.1154692]
[1743616067354,0.1154711,86600.0,86599.0,0.00121326]
[1743616067558,0.11643111,86600.0,86599.0,0.00217326]
[1743616067860,0.11643111,86600.0,86599.0,0.00017326]
[1743616068055,0.29543111,86600.0,86599.0,0.11564566]
[1743616068251,0.29543111,86600.0,86599.0,0.11664566]
[1743616070964,0.29543111,86600.0,86599.0,0.20504566]
[1743616071557,0.17996001,86600.0,86599.0,0.20504566]
[1743616071753,0.0004,86624.0,86607.0,0.1154617]
[1743616071754,0.11562386,86616.0,86607.0,0.1154617]
[1743616071956,0.11562386,86616.0,86614.0,0.0577262]
[1743616071957,0.00017326,86616.0,86614.0,0.0577262]
[1743616072175,0.1863,86615.0,86614.0,0.0590462]
[1743616072467,0.18754001,86615.0,86614.0,0.5124462]
[1743616073764,0.30299111,86615.0,86614.0,0.5124462]
[1743616074868,0.00124001,86615.0,86614.0,0.5124462]
[1743616075169,0.00017326,86616.0,86615.0,0.1154511]
[1743616075370,0.00017326,86616.0,86615.0,0.1166911]
[1743616075667,0.00017326,86616.0,86615.0,0.2069911]
[1743616079573,0.11562306,86616.0,86615.0,0.00124]
[1743616079874,0.11562306,86616.0,86615.0,0.1166911]
[1743616080074,0.20706307,86616.0,86615.0,0.1166911]
[1743616080376,0.30186307,86616.0,86615.0,0.1166911]
[1743616082768,0.30186307,86616.0,86615.0,0.00124]
[1743616082970,0.2309114,86613.0,86610.0,0.2309119]
[1743616083184,0.0577295,86609.0,86608.0,0.0577299]
[1743616083474,0.1154684,86602.0,86601.0,0.20795393]
[1743616083669,0.1154684,86602.0,86601.0,0.32210363]
[1743616083869,0.3035684,86602.0,86601.0,0.32334363]
[1743616084169,0.6643684,86602.0,86601.0,0.32210363]
[1743616084376,0.1154711,86600.0,86592.0,0.34463959]
[1743616084766,0.24851271,86600.0,86597.0,0.1154744]
[1743616085079,0.12688347,86600.0,86599.0,0.11564566]
[1743616086369,0.26908418,86600.0,86599.0,0.00017326]
[1743616087780,0.26908418,86600.0,86585.0,0.0597454]
[1743616087781,0.0577362,86599.0,86588.0,0.27622223]
[1743616087968,0.4762857,86589.0,86585.0,0.002]
[1743616088171,0.1154924,86584.0,86577.0,0.00173255]
[1743616088370,0.1154924,86584.0,86572.0,0.0946]
[1743616088570,0.24547536,86584.0,86583.0,0.00046198]
[1743616088870,0.1155071,86573.0,86572.0,0.0946]
[1743616089070,0.1168271,86573.0,86572.0,0.09584]
[1743616089272,0.24681006,86573.0,86572.0,0.00124]
[1743616089472,0.42671006,86573.0,86572.0,0.00124]
[1743616089874,0.22450296,86573.0,86572.0,0.1167484]
[1743616090173,0.1168271,86573.0,86572.0,0.1167484]
[1743616090683,0.1168271,86573.0,86572.0,0.09184]
[1743616090976,0.1168271,86573.0,86572.0,0.2073484]
[1743616091182,0.43775973,86573.0,86572.0,0.2073484]
[1743616091883,0.43775973,86573.0,86572.0,0.00124]
[1743616094075,0.43775973,86573.0,86572.0,0.09374]
[1743616094269,0.43775973,86573.0,86572.0,0.2080084]
[1743616094470,0.00132,86573.0,86572.0,0.2092484]
[1743616094689,0.1168271,86573.0,86572.0,0.2975484]
[1743616096277,0.1168271,86573.0,86572.0,0.18204]
[1743616096471,0.24663454,86573.0,86572.0,0.09374]
[1743616096671,0.24663454,86573.0,86572.0,0.0925]
[1743616096886,0.24663454,86573.0,86572.0,0.2092484]
[1743616097189,0.42383454,86573.0,86572.0,0.2092484]
[1743616097588,0.42383454,86573.0,86572.0,0.09374]
[1743616097882,0.42383454,86573.0,86572.0,0.2092484]
[1743616098882,0.42383454,86573.0,86572.0,0.09374]
[1743616099485,0.42383454,86573.0,86572.0,0.2092484]
[1743616099988,0.33703454,86573.0,86572.0,0.2092484]
[1743616100187,0.33703454,86573.0,86572.0,0.2980484]
[1743616100686,0.42413454,86573.0,86572.0,0.2980484]
[1743616103488,0.39194744,86573.0,86540.0,0.3608]
[1743616103790,0.1155351,86552.0,86551.0,0.15050925]
[1743616104878,0.1155351,86552.0,86551.0,0.32870925]
[1743616105075,0.1155351,86552.0,86551.0,0.18194215]
[1743616105282,0.11641511,86552.0,86551.0,0.18194215]
[1743616105483,0.30151511,86552.0,86551.0,0.29747865]
[1743616106089,0.30151511,86552.0,86551.0,0.38847865]
[1743616106285,0.11641511,86552.0,86551.0,0.38847865]
[1743616108993,0.1155279,86558.0,86557.0,0.1732893]
[1743616109284,0.1166879,86558.0,86557.0,0.1744493]
[1743616109886,0.00116,86558.0,86557.0,0.1744493]
[1743616110088,0.1155271,86558.0,86557.0,0.17606]
[1743616110391,0.60268734,86558.0,86557.0,0.08786]
[1743616110589,0.60268734,86558.0,86557.0,0.0867]
[1743616110783,0.78898734,86558.0,86557.0,0.08794]
[1743616111880,0.1155458,86544.0,86536.0,0.00373337]
[1743616112084,0.1163858,86544.0,86543.0,0.17673326]
[1743616112491,0.2074858,86544.0,86543.0,0.17673326]
[1743616112790,0.2074858,86544.0,86543.0,0.29152036]
[1743616112992,0.2074858,86544.0,86543.0,0.29232036]
[1743616113193,0.00084,86544.0,86543.0,0.29232036]
[1743616113392,0.0577634,86559.0,86552.0,0.1155327]
[1743616113393,0.1155403,86553.0,86552.0,0.1155327]
[1743616113593,0.1163003,86553.0,86552.0,0.1163327]
[1743616114378,0.1163003,86553.0,86543.0,0.08607326]
[1743616114379,0.1155458,86544.0,86543.0,0.08607326]
[1743616114586,0.1161858,86544.0,86543.0,0.20222036]
[1743616114781,0.23789387,86544.0,86543.0,0.20222036]
[1743616115299,0.1155551,86537.0,86536.0,0.002]
[1743616115595,0.1163551,86537.0,86536.0,0.1812]
[1743616115895,0.1163551,86537.0,86536.0,0.3856565]
[1743616116193,0.2051951,86537.0,86536.0,0.1181565]
[1743616116499,0.2051951,86537.0,86536.0,0.0026]
[1743616116500,0.2990951,86537.0,86536.0,0.0026]
[1743616116686,0.43311721,86537.0,86536.0,0.0026]
[1743616116882,0.1155565,86536.0,86535.0,0.00046224]
[1743616117085,0.1163565,86536.0,86535.0,0.00046224]
[1743616117387,0.42148099,86536.0,86535.0,0.00046224]
[1743616117892,0.42148099,86536.0,86535.0,0.00114224]
[1743616118398,0.42148099,86536.0,86535.0,0.00046224]
[1743616118787,0.42148099,86536.0,86535.0,0.00106224]
[1743616119485,0.42148099,86536.0,86535.0,0.00046224]
[1743616119889,0.42148099,86536.0,86535.0,0.11662004]
[1743616120389,0.42148099,86536.0,86535.0,0.00106224]
[1743616120895,0.42148099,86536.0,86535.0,0.11602004]
[1743616121102,0.32758099,86536.0,86535.0,0.11662004]
[1743616121402,0.12322449,86536.0,86535.0,0.29502004]
[1743616121598,0.0008,86536.0,86535.0,0.29502004]
[1743616121787,0.1709086,86539.0,86538.0,0.1155538]
[1743616122093,0.1717086,86539.0,86538.0,0.1161538]
[1743616122299,0.1717086,86539.0,86538.0,0.3876538]
[1743616123799,0.0008,86539.0,86538.0,0.3876538]
[1743616123996,0.1155525,86539.0,86538.0,0.3876538]
[1743616124303,0.1163525,86539.0,86538.0,0.3876538]
[1743616126303,0.2069525,86539.0,86538.0,0.3876538]
[1743616130605,0.1155565,86536.0,86535.0,0.00046224]
[1743616130805,0.1165565,86536.0,86535.0,0.00046224]
[1743616131012,0.41072861,86536.0,86535.0,0.00106224]
[1743616131301,0.32412861,86536.0,86535.0,0.11662004]
[1743616131497,0.32412861,86536.0,86535.0,0.09116224]
[1743616131806,0.32412861,86536.0,86535.0,0.00046224]
[1743616131807,0.41072861,86536.0,86535.0,0.00046224]
[1743616132291,0.41072861,86536.0,86535.0,0.09116224]
[1743616132904,0.41072861,86536.0,86535.0,0.20672004]
[1743616133106,0.23832861,86536.0,86535.0,0.29472004]
[1743616133301,0.32652861,86536.0,86535.0,0.29472004]
[1743616134803,0.29677211,86536.0,86535.0,0.29472004]
[1743616135004,0.21097211,86536.0,86535.0,0.29472004]
[1743616135398,0.32652861,86536.0,86535.0,0.00106224]
[1743616135707,0.41232861,86536.0,86535.0,0.00046224]
[1743616136609,0.41232861,86536.0,86535.0,0.00146224]
[1743616137307,0.41232861,86536.0,86535.0,0.00106224]
[1743616137505,0.41232861,86536.0,86535.0,0.00046224]
[1743616137905,0.41232861,86536.0,86535.0,0.00106224]
[1743616139715,0.41232861,86536.0,86535.0,0.00046224]
[1743616140413,0.1155658,86529.0,86528.0,0.00017326]
[1743616140709,0.4773658,86529.0,86528.0,0.00077326]
[1743616141012,0.77620186,86529.0,86528.0,0.11634046]
[1743616141207,0.77620186,86529.0,86528.0,0.20864046]
[1743616142808,0.77620186,86529.0,86528.0,0.29864046]
[1743616143907,0.41540186,86529.0,86528.0,0.29864046]
[1743616144516,0.47159457,86529.0,86528.0,0.29864046]
[1743616145612,0.47159457,86529.0,86528.0,0.18307326]
[1743616145816,0.1155992,86504.0,86500.0,0.1578022]
[1743616146114,0.4775592,86504.0,86503.0,0.11162241]
[1743616146419,0.60562899,86504.0,86503.0,0.00226241]
[1743616146604,0.1156032,86501.0,86500.0,0.1]
[1743616146809,0.1168832,86501.0,86500.0,0.1]
[1743616147010,0.24093508,86501.0,86500.0,0.1]
[1743616147418,0.24093508,86501.0,86500.0,0.1006]
[1743616147720,0.32413508,86501.0,86500.0,0.1006]
[1743616148219,0.1168832,86501.0,86500.0,0.2981046]
[1743616148410,0.1168832,86501.0,86500.0,0.3876046]
[1743616148603,0.12364621,86501.0,86500.0,0.3876046]
[1743616151323,0.12367589,86501.0,86500.0,0.3876046]
[1743616153426,0.1168832,86501.0,86500.0,0.3876046]
[1743616153912,0.2052832,86501.0,86500.0,0.3876046]
[1743616154909,0.00128,86501.0,86500.0,0.3876046]
[1743616155109,0.0577987,86506.0,86505.0,0.23119]
[1743616155310,0.1745553,86506.0,86505.0,0.23235]
[1743616155512,0.1745553,86506.0,86505.0,0.00116]
[1743616155920,0.30657228,86506.0,86505.0,0.1167579]
[1743616156112,0.30657228,86506.0,86505.0,0.3670579]
[1743616156420,0.48017228,86506.0,86505.0,0.3670579]
[1743616157022,0.39357228,86506.0,86505.0,0.3670579]
[1743616158822,0.26841842,86506.0,86505.0,0.3670579]
[1743616160820,0.18141842,86506.0,86505.0,0.3670579]
[1743616161023,0.00802312,86506.0,86505.0,0.3770579]
[1743616161212,0.00686312,86506.0,86505.0,0.3770579]
[1743616161708,0.10235888,86509.0,86508.0,0.1155939]
[1743616161912,0.10235888,86509.0,86508.0,0.1262339]
[1743616161913,0.10355889,86509.0,86508.0,0.1262339]
[1743616162108,0.10355889,86509.0,86508.0,0.2921339]
[1743616162328,0.11077714,86509.0,86508.0,0.2921339]
[1743616162518,0.22636964,86509.0,86508.0,0.2921339]
[1743616162713,0.22636964,86509.0,86508.0,0.00064]
[1743616162913,0.1155966,86506.0,86505.0,0.0818]
[1743616163124,0.11679661,86506.0,86505.0,0.08248]
[1743616163318,0.30106018,86506.0,86505.0,0.1980779]
[1743616163622,0.31556768,86506.0,86505.0,0.2841779]
[1743616163822,0.31556768,86506.0,86505.0,0.3721779]
[1743616164531,0.23206768,86506.0,86505.0,0.3721779]
[1743616165217,0.15006768,86506.0,86505.0,0.3721779]
[1743616166525,0.13556018,86506.0,86505.0,0.3721779]
[1743616166818,0.15039753,86506.0,86505.0,0.3721779]
[1743616169814,0.03480093,86506.0,86505.0,0.3721779]
[1743616170017,0.03480093,86506.0,86505.0,0.7329779]
[1743616170423,0.15039753,86506.0,86505.0,0.7329779]
[1743616170723,0.15039753,86506.0,86505.0,0.3721779]
[1743616171021,0.23499753,86506.0,86505.0,0.00068]
[1743616171224,0.23499753,86506.0,86501.0,0.1727]
[1743616171225,0.0577989,86505.0,86501.0,0.1727]
[1743616171416,0.1156032,86501.0,86500.0,0.2156046]
[1743616171616,0.13160055,86501.0,86500.0,0.2156046]
[1743616171816,0.29950055,86501.0,86500.0,0.2162046]
[1743616172030,0.31826412,86501.0,86500.0,0.2162046]
[1743616172323,0.23496412,86501.0,86500.0,0.2162046]
[1743616172525,0.23496412,86501.0,86500.0,0.3805046]
[1743616173323,0.23496412,86501.0,86500.0,0.1826]
[1743616173514,0.32016412,86501.0,86500.0,0.2982046]
[1743616173920,0.32016412,86501.0,86500.0,0.1006]
[1743616174323,0.32016412,86501.0,86497.0,0.0578039]
[1743616174324,0.1156126,86494.0,86493.0,0.0831]
[1743616174627,0.13180995,86494.0,86493.0,0.1993539]
[1743616174823,0.15061353,86494.0,86493.0,0.2813539]
[1743616175028,0.31981353,86494.0,86493.0,0.3636539]
[1743616176126,0.31992573,86494.0,86493.0,0.3636539]
[1743616177026,0.31992573,86494.0,86493.0,0.2813539]
[1743616177237,0.31992573,86494.0,86493.0,0.1993539]
[1743616177421,0.31992573,86494.0,86493.0,0.00064]
[1743616177627,0.1156139,86493.0,86492.0,0.00011594]
[1743616177814,0.13192345,86493.0,86492.0,0.00011594]
[1743616178128,0.41334161,86493.0,86492.0,0.00011594]
[1743616178328,0.39839206,86493.0,86492.0,0.00011594]
[1743616178631,0.43215371,86493.0,86492.0,0.00011594]
[1743616180531,0.22963555,86493.0,86492.0,0.00011594]
[1743616180728,0.30953555,86493.0,86492.0,0.00079594]
[1743616180932,0.30953555,86493.0,86492.0,0.00011594]
[1743616181136,0.30953555,86493.0,86492.0,0.00071594]
[1743616181528,0.43509719,86493.0,86492.0,0.00071594]
[1743616181832,0.43509719,86493.0,86492.0,0.00011594]
[1743616183423,0.43509719,86493.0,86492.0,0.00151594]
[1743616183831,0.43509719,86493.0,86473.0,0.1156398]
[1743616183832,0.1734623,86474.0,86473.0,0.1156398]
[1743616184036,0.1752223,86474.0,86473.0,0.1656398]
[1743616184222,0.20878657,86474.0,86473.0,0.1656398]
[1743616184624,0.22654482,86474.0,86473.0,0.1656398]
[1743616184838,0.20878657,86474.0,86473.0,0.1656398]
[1743616185223,0.29008657,86474.0,86473.0,0.1656398]
[1743616185426,0.29008657,86474.0,86473.0,0.2827398]
[1743616185628,0.27528587,86474.0,86473.0,0.3327398]
[1743616185943,0.30865961,86474.0,86473.0,0.3327398]
[1743616186237,0.29090676,86474.0,86473.0,0.3327398]
[1743616187439,0.29090676,86474.0,86473.0,0.2171]
[1743616187636,0.29090676,86474.0,86473.0,0.3327407]
[1743616187834,0.29090676,86474.0,86473.0,0.2171]
[1743616188030,0.15178376,86474.0,86473.0,0.2927407]
[1743616189233,0.14023844,86474.0,86473.0,0.2927407]
[1743616189437,0.14013316,86474.0,86473.0,0.2927407]
[1743616189735,0.14013316,86474.0,86473.0,0.0836]
[1743616189927,0.31183316,86474.0,86473.0,0.1992407]
[1743616190125,0.22453316,86474.0,86473.0,0.2855407]
[1743616190531,0.23176284,86474.0,86473.0,0.2855407]
[1743616190841,0.23899255,86474.0,86473.0,0.2855407]
[1743616191339,0.23972916,86474.0,86473.0,0.2855407]
[1743616191544,0.25275834,86474.0,86473.0,0.2855407]
[1743616192254,0.24552866,86474.0,86473.0,0.2855407]
[1743616193541,0.16835819,86474.0,86473.0,0.2955407]
[1743616193935,0.16112866,86474.0,86473.0,0.2955407]
[1743616194742,0.15389888,86474.0,86473.0,0.2955407]
[1743616195142,0.23309888,86474.0,86473.0,0.2955407]
[1743616197259,0.03825958,86474.0,86473.0,0.6563407]
[1743616197744,0.15389888,86474.0,86473.0,0.6563407]
[1743616199549,0.24109888,86474.0,86473.0,0.6563407]
[1743616200556,0.32419888,86474.0,86473.0,0.6563407]
[1743616201550,0.32419888,86474.0,86473.0,0.6463407]
[1743616201953,0.32419888,86474.0,86473.0,0.5307]
[1743616202245,0.32274009,86474.0,86473.0,0.5600407]
[1743616202451,0.12400079,86474.0,86473.0,0.5600407]
[1743616202653,0.23964009,86474.0,86473.0,0.6458407]
[1743616203350,0.26372039,86474.0,86471.0,8e-08]
[1743616203554,0.476442,86472.0,86471.0,0.11564338]
[1743616203751,0.49303536,86472.0,86471.0,8e-08]
[1743616203953,0.29473536,86472.0,86471.0,8e-08]
[1743616204459,0.31498279,86472.0,86471.0,0.11564338]
[1743616204645,0.31498279,86472.0,86471.0,8e-08]
[1743616205147,0.68711894,86472.0,86471.0,8e-08]
[1743616205551,0.03684079,86472.0,86471.0,0.11564338]
[1743616205856,0.03684079,86472.0,86471.0,0.12564338]
[1743616206146,0.15248279,86472.0,86471.0,0.28714338]
[1743616206352,0.15248279,86472.0,86471.0,0.17150008]
[1743616206549,0.23838279,86472.0,86471.0,0.19774338]
[1743616206752,0.31868279,86472.0,86471.0,0.19774338]
[1743616207856,0.31851099,86472.0,86471.0,0.19774338]
[1743616208857,0.31851099,86472.0,86471.0,0.27714338]
[1743616209459,0.23261099,86472.0,86471.0,0.27714338]
[1743616210856,0.23261099,86472.0,86471.0,0.16150008]
[1743616210857,0.21798943,86472.0,86471.0,0.16150008]
[1743616211245,0.43047076,86472.0,86471.0,8e-08]
[1743616211845,0.41744158,86472.0,86471.0,8e-08]
[1743616212048,0.41744158,86472.0,86471.0,0.11564338]
[1743616212454,0.41744158,86472.0,86471.0,8e-08]
[1743616212852,0.41744158,86472.0,86471.0,0.11564338]
[1743616213058,0.41744158,86472.0,86471.0,8e-08]
[1743616213355,0.77824158,86472.0,86471.0,8e-08]
[1743616213557,0.41744158,86472.0,86471.0,8e-08]
[1743616213754,0.42900672,86472.0,86471.0,8e-08]
[1743616214155,0.78980672,86472.0,86471.0,8e-08]
[1743616214956,0.77824158,86472.0,86471.0,8e-08]
[1743616216547,0.78980109,86472.0,86471.0,8e-08]
[1743616216751,0.8460316,86472.0,86471.0,8e-08]
[1743616217162,1.0860316,86472.0,86471.0,8e-08]
[1743616217358,0.8460316,86472.0,86471.0,8e-08]
[1743616217559,0.1156634,86456.0,86452.0,0.0838]
[1743616217764,0.13190477,86456.0,86452.0,0.0838]
[1743616217953,0.45167756,86456.0,86452.0,0.1994687]
[1743616218255,0.53227756,86456.0,86453.0,0.2313342]
[1743616218452,0.53227756,86456.0,86453.0,0.115667]
[1743616218652,0.53227756,86456.0,86452.0,0.0838]
[1743616218855,0.43497619,86456.0,86452.0,0.0838]
[1743616219164,0.02061776,86456.0,86455.0,0.11612737]
[1743616219361,0.13628116,86456.0,86455.0,0.11612737]
[1743616219561,0.12472165,86456.0,86455.0,0.28052737]
[1743616220159,0.21032165,86456.0,86455.0,0.28052737]
[1743616220357,0.4369898,86456.0,86455.0,0.28052737]
[1743616221860,0.2357264,86456.0,86455.0,0.28052737]
[1743616222062,0.2357264,86456.0,86455.0,0.64132737]
[1743616222860,0.3513898,86456.0,86455.0,0.64132737]
[1743616223053,0.3513898,86456.0,86455.0,0.28052737]
[1743616224355,0.33696347,86456.0,86455.0,0.28052737]
[1743616224560,0.33696347,86456.0,86455.0,0.19702737]
[1743616224762,0.41796347,86456.0,86455.0,0.19702737]
[1743616226167,0.41796347,86456.0,86455.0,0.08136267]
[1743616226370,0.77876347,86456.0,86455.0,0.11612737]
[1743616226773,0.77876347,86456.0,86455.0,0.00046267]
[1743616227567,0.1156674,86453.0,86452.0,0.0838]
[1743616227770,0.1156688,86452.0,86451.0,0.1181501]
[1743616227965,0.2802288,86452.0,86451.0,0.1181501]
[1743616228161,0.41369766,86452.0,86451.0,0.1181501]
[1743616228770,0.41369766,86452.0,86451.0,0.00248]
[1743616229161,0.49269766,86452.0,86451.0,0.00248]
[1743616229566,0.37702886,86452.0,86413.0,0.5786046]
[1743616229763,0.1156848,86441.0,86440.0,0.1735204]
[1743616230157,0.24452836,86441.0,86440.0,0.1735204]